[Event "Titled Tuesday Blitz August 23 Late 2022"]
[White "Martinez Alcantara, Jose Eduardo"]
[Black "Shirov, Alexei"]
[WhiteFideId "3805662"]
[BlackFideId "2209390"]
[WhiteElo "2703"]
[BlackElo "2678"]
[Result "1-0"]
[Round "11"]
[TimeControl "180+1"]
[Date "2022.08.23"]
[WhiteClock "0:00:03"]
[BlackClock "0:00:01"]

1. e4 {[%clk 0:03:00]}  e5 {[%clk 0:03:00]} 2. Nf3 {[%clk 0:03:01]}  Nc6 {[%clk 0:03:00]} 3. Bb5 {[%clk 0:03:02]}  a6 {[%clk 0:03:00]} 4. Ba4 {[%clk 0:03:02]}  Nf6 {[%clk 0:03:00]} 5. d3 {[%clk 0:03:03]}  b5 {[%clk 0:02:58]} 6. Bb3 {[%clk 0:03:03]}  Bc5 {[%clk 0:02:58]} 7. c3 {[%clk 0:03:03]}  d6 {[%clk 0:02:57]} 8. Bg5 {[%clk 0:03:04]}  h6 {[%clk 0:02:56]} 9. Bh4 {[%clk 0:03:04]}  Bb6 {[%clk 0:02:48]} 10. Nbd2 {[%clk 0:03:04]}  g5 {[%clk 0:02:46]} 11. Bg3 {[%clk 0:03:04]}  Ne7 {[%clk 0:02:39]} 12. Nf1 {[%clk 0:02:48]}  Ng6 {[%clk 0:02:36]} 13. Ne3 {[%clk 0:02:43]}  Nf4 {[%clk 0:02:28]} 14. Qd2 {[%clk 0:02:37]}  Be6 {[%clk 0:02:24]} 15. Bxf4 {[%clk 0:02:10]}  gxf4 {[%clk 0:02:23]} 16. Nf5 {[%clk 0:02:10]}  Bxf5 {[%clk 0:02:18]} 17. exf5 {[%clk 0:02:11]}  Qd7 {[%clk 0:02:17]} 18. a4 {[%clk 0:02:11]}  Qxf5 {[%clk 0:02:09]} 19. axb5 {[%clk 0:02:08]}  e4 {[%clk 0:02:07]} 20. dxe4 {[%clk 0:01:57]}  Qxe4+ {[%clk 0:01:48]} 21. Kf1 {[%clk 0:01:44]}  O-O {[%clk 0:01:46]} 22. Ra4 {[%clk 0:01:44]}  Qf5 {[%clk 0:01:43]} 23. Rxf4 {[%clk 0:01:41]}  Qxb5+ {[%clk 0:01:38]} 24. Bc4 {[%clk 0:01:40]}  Qc6 {[%clk 0:01:31]} 25. Bd3 {[%clk 0:01:35]}  d5 {[%clk 0:01:28]} 26. Rh4 {[%clk 0:01:04]}  Ne4 {[%clk 0:01:27]} 27. Qf4 {[%clk 0:01:02]}  Qf6 {[%clk 0:01:05]} 28. Bxe4 {[%clk 0:00:29]}  Qxf4 {[%clk 0:01:04]} 29. Rxf4 {[%clk 0:00:30]}  dxe4 {[%clk 0:01:04]} 30. Rxe4 {[%clk 0:00:31]}  Rad8 {[%clk 0:01:02]} 31. g3 {[%clk 0:00:26]}  Rfe8 {[%clk 0:00:51]} 32. Rxe8+ {[%clk 0:00:22]}  Rxe8 {[%clk 0:00:50]} 33. Nd2 {[%clk 0:00:20]}  Rd8 {[%clk 0:00:45]} 34. Ke2 {[%clk 0:00:20]}  Bxf2 {[%clk 0:00:44]} 35. Ra1 {[%clk 0:00:20]}  Bb6 {[%clk 0:00:35]} 36. Rxa6 {[%clk 0:00:18]}  Re8+ {[%clk 0:00:36]} 37. Kd1 {[%clk 0:00:18]}  Kg7 {[%clk 0:00:30]} 38. Ra4 {[%clk 0:00:12]}  Bg1 {[%clk 0:00:25]} 39. Nf3 {[%clk 0:00:11]}  Bf2 {[%clk 0:00:24]} 40. Rf4 {[%clk 0:00:11]}  Be3 {[%clk 0:00:18]} 41. Rg4+ {[%clk 0:00:11]}  Kf6 {[%clk 0:00:17]} 42. Rc4 {[%clk 0:00:11]}  Bb6 {[%clk 0:00:16]} 43. Rh4 {[%clk 0:00:09]}  Kg7 {[%clk 0:00:16]} 44. Rg4+ {[%clk 0:00:09]}  Kf6 {[%clk 0:00:15]} 45. Rf4+ {[%clk 0:00:10]}  Kg7 {[%clk 0:00:15]} 46. Nh4 {[%clk 0:00:10]}  Rd8+ {[%clk 0:00:13]} 47. Kc2 {[%clk 0:00:10]}  Re8 {[%clk 0:00:13]} 48. Kd1 {[%clk 0:00:10]}  Rd8+ {[%clk 0:00:13]} 49. Ke2 {[%clk 0:00:10]}  Re8+ {[%clk 0:00:13]} 50. Kf1 {[%clk 0:00:10]}  Rd8 {[%clk 0:00:13]} 51. Nf3 {[%clk 0:00:08]}  Rd1+ {[%clk 0:00:12]} 52. Ke2 {[%clk 0:00:05]}  Rb1 {[%clk 0:00:11]} 53. Rb4 {[%clk 0:00:06]}  Rc1 {[%clk 0:00:09]} 54. Rb5 {[%clk 0:00:03]}  Rc2+ {[%clk 0:00:08]} 55. Kd3 {[%clk 0:00:04]}  Rf2 {[%clk 0:00:08]} 56. Ke4 {[%clk 0:00:03]}  Re2+ {[%clk 0:00:08]} 57. Kf4 {[%clk 0:00:03]}  Be3+ {[%clk 0:00:06]} 58. Kg4 {[%clk 0:00:03]}  Bc1 {[%clk 0:00:05]} 59. b3 {[%clk 0:00:03]}  Re4+ {[%clk 0:00:02]} 60. Kh3 {[%clk 0:00:03]}  Re3 {[%clk 0:00:02]} 61. Nd4 {[%clk 0:00:04]}  Rxc3 {[%clk 0:00:02]} 62. Nf5+ {[%clk 0:00:04]}  Kg6 {[%clk 0:00:02]} 63. Nh4+ {[%clk 0:00:05]}  Kg7 {[%clk 0:00:02]} 64. b4 {[%clk 0:00:04]}  Rc2 {[%clk 0:00:01]} 65. Nf5+ {[%clk 0:00:03]} 1-0


[Site "https://www.chess.com"]

[Event "Titled Tuesday Blitz August 23 Late 2022"]
[White "Matinian, Nikita"]
[Black "Claverie, Christophe"]
[WhiteFideId "24129100"]
[BlackFideId "605514"]
[WhiteElo "2422"]
[BlackElo "2300"]
[Result "0-1"]
[Round "11"]
[TimeControl "180+1"]
[Date "2022.08.23"]
[WhiteClock "0:00:02"]
[BlackClock "0:00:34"]

1. e4 {[%clk 0:03:00]}  c5 {[%clk 0:02:59]} 2. Nc3 {[%clk 0:02:59]}  Nc6 {[%clk 0:02:59]} 3. Bb5 {[%clk 0:02:59]}  d6 {[%clk 0:02:55]} 4. f4 {[%clk 0:02:56]}  Bd7 {[%clk 0:02:54]} 5. Nf3 {[%clk 0:02:56]}  a6 {[%clk 0:02:54]} 6. Bxc6 {[%clk 0:02:56]}  Bxc6 {[%clk 0:02:55]} 7. O-O {[%clk 0:02:56]}  e6 {[%clk 0:02:55]} 8. d3 {[%clk 0:02:42]}  Nf6 {[%clk 0:02:48]} 9. e5 {[%clk 0:02:36]}  Nd5 {[%clk 0:02:48]} 10. Ne4 {[%clk 0:02:35]}  Be7 {[%clk 0:02:43]} 11. a3 {[%clk 0:02:27]}  O-O {[%clk 0:02:37]} 12. Qe1 {[%clk 0:02:26]}  Nb6 {[%clk 0:02:12]} 13. exd6 {[%clk 0:02:22]}  Bxd6 {[%clk 0:02:11]} 14. Nxd6 {[%clk 0:02:22]}  Qxd6 {[%clk 0:02:12]} 15. Ne5 {[%clk 0:02:17]}  Nd7 {[%clk 0:02:11]} 16. Qg3 {[%clk 0:01:55]}  f6 {[%clk 0:02:00]} 17. Nxd7 {[%clk 0:01:55]}  Qxd7 {[%clk 0:01:57]} 18. b3 {[%clk 0:01:52]}  Qd4+ {[%clk 0:01:43]} 19. Be3 {[%clk 0:01:51]}  Qc3 {[%clk 0:01:43]} 20. Qf2 {[%clk 0:01:46]}  b6 {[%clk 0:01:42]} 21. a4 {[%clk 0:01:44]}  a5 {[%clk 0:01:41]} 22. Qd2 {[%clk 0:01:43]}  Qxd2 {[%clk 0:01:39]} 23. Bxd2 {[%clk 0:01:44]}  h5 {[%clk 0:01:35]} 24. Rfe1 {[%clk 0:01:44]}  Kf7 {[%clk 0:01:35]} 25. Kf2 {[%clk 0:01:41]}  Rfe8 {[%clk 0:01:35]} 26. Bc3 {[%clk 0:01:34]}  Rad8 {[%clk 0:01:34]} 27. Rad1 {[%clk 0:01:31]}  Rd5 {[%clk 0:01:33]} 28. g3 {[%clk 0:01:30]}  Rf5 {[%clk 0:01:32]} 29. d4 {[%clk 0:01:21]}  h4 {[%clk 0:01:23]} 30. dxc5 {[%clk 0:01:15]}  hxg3+ {[%clk 0:01:23]} 31. Kxg3 {[%clk 0:01:10]}  Rxc5 {[%clk 0:01:19]} 32. Re3 {[%clk 0:01:10]}  Rh8 {[%clk 0:01:15]} 33. Rd6 {[%clk 0:01:09]}  Bh1 {[%clk 0:00:51]} 34. Rdxe6 {[%clk 0:00:54]}  Rch5 {[%clk 0:00:39]} 35. Re7+ {[%clk 0:00:53]}  Kg6 {[%clk 0:00:39]} 36. Rc7 {[%clk 0:00:18]}  Rxh2 {[%clk 0:00:34]} 37. f5+ {[%clk 0:00:02]}  Kxf5 {[%clk 0:00:34]} 0-1


[Site "https://www.chess.com"]

[Event "Titled Tuesday Blitz August 23 Late 2022"]
[White "Melikyan, Gnel"]
[Black "Aghasiyev, Kamal"]
[WhiteFideId "54109990"]
[BlackFideId "13402854"]
[WhiteElo "1772"]
[BlackElo "2210"]
[Result "1/2-1/2"]
[Round "11"]
[TimeControl "180+1"]
[Date "2022.08.23"]
[WhiteClock "0:00:15"]
[BlackClock "0:00:09"]

1. e4 {[%clk 0:03:00]}  e5 {[%clk 0:02:59]} 2. Nf3 {[%clk 0:03:00]}  Nc6 {[%clk 0:02:59]} 3. d4 {[%clk 0:03:00]}  exd4 {[%clk 0:02:59]} 4. Nxd4 {[%clk 0:03:01]}  Bc5 {[%clk 0:02:59]} 5. Nxc6 {[%clk 0:03:02]}  Qf6 {[%clk 0:02:59]} 6. Qf3 {[%clk 0:03:02]}  dxc6 {[%clk 0:02:58]} 7. Nc3 {[%clk 0:03:02]}  Be6 {[%clk 0:02:56]} 8. Qg3 {[%clk 0:03:02]}  Bd6 {[%clk 0:02:47]} 9. f4 {[%clk 0:02:59]}  Qg6 {[%clk 0:02:42]} 10. Qf2 {[%clk 0:02:50]}  f5 {[%clk 0:02:36]} 11. e5 {[%clk 0:02:48]}  Bb4 {[%clk 0:02:34]} 12. Bd2 {[%clk 0:02:47]}  Ne7 {[%clk 0:02:34]} 13. O-O-O {[%clk 0:02:47]}  O-O {[%clk 0:02:22]} 14. a3 {[%clk 0:02:43]}  Ba5 {[%clk 0:02:13]} 15. Qc5 {[%clk 0:02:39]}  Bxc3 {[%clk 0:02:13]} 16. Bxc3 {[%clk 0:02:27]}  Nd5 {[%clk 0:02:13]} 17. g3 {[%clk 0:02:25]}  Rfd8 {[%clk 0:02:02]} 18. Bd4 {[%clk 0:02:16]}  Qf7 {[%clk 0:01:58]} 19. Bf2 {[%clk 0:02:11]}  Nb6 {[%clk 0:01:50]} 20. Be2 {[%clk 0:02:00]}  Bd5 {[%clk 0:01:47]} 21. Rhe1 {[%clk 0:01:58]}  Be4 {[%clk 0:01:44]} 22. b3 {[%clk 0:01:56]}  Nd5 {[%clk 0:01:39]} 23. a4 {[%clk 0:01:49]}  Qe6 {[%clk 0:01:37]} 24. Kb2 {[%clk 0:01:47]}  a5 {[%clk 0:01:31]} 25. Rd2 {[%clk 0:01:36]}  b6 {[%clk 0:01:23]} 26. Qd4 {[%clk 0:01:26]}  h6 {[%clk 0:01:15]} 27. Red1 {[%clk 0:01:22]}  c5 {[%clk 0:01:11]} 28. Qc4 {[%clk 0:01:13]}  Kh7 {[%clk 0:01:11]} 29. Bd3 {[%clk 0:01:04]}  Bxd3 {[%clk 0:01:10]} 30. Qxd3 {[%clk 0:01:01]}  c6 {[%clk 0:01:08]} 31. Qf3 {[%clk 0:00:56]}  Re8 {[%clk 0:00:57]} 32. c4 {[%clk 0:00:55]}  Nb4 {[%clk 0:00:57]} 33. Rd6 {[%clk 0:00:54]}  Qf7 {[%clk 0:00:57]} 34. Be1 {[%clk 0:00:52]}  b5 {[%clk 0:00:45]} 35. cxb5 {[%clk 0:00:43]}  cxb5 {[%clk 0:00:45]} 36. Rd7 {[%clk 0:00:39]}  Qf8 {[%clk 0:00:38]} 37. axb5 {[%clk 0:00:32]}  a4 {[%clk 0:00:35]} 38. b6 {[%clk 0:00:22]}  a3+ {[%clk 0:00:32]} 39. Ka1 {[%clk 0:00:20]}  Nc2+ {[%clk 0:00:21]} 40. Ka2 {[%clk 0:00:19]}  Nd4 {[%clk 0:00:20]} 41. Qd5 {[%clk 0:00:18]}  Rab8 {[%clk 0:00:17]} 42. Bc3 {[%clk 0:00:17]}  Rxb6 {[%clk 0:00:16]} 43. Bxd4 {[%clk 0:00:17]}  cxd4 {[%clk 0:00:17]} 44. Qxd4 {[%clk 0:00:17]}  Rc6 {[%clk 0:00:16]} 45. Rd2 {[%clk 0:00:17]}  Rec8 {[%clk 0:00:15]} 46. e6 {[%clk 0:00:17]}  Rc2+ {[%clk 0:00:14]} 47. Rxc2 {[%clk 0:00:16]}  Rxc2+ {[%clk 0:00:14]} 48. Kb1 {[%clk 0:00:16]}  Rb2+ {[%clk 0:00:15]} 49. Ka1 {[%clk 0:00:16]}  Rxb3 {[%clk 0:00:13]} 50. e7 {[%clk 0:00:16]}  Qe8 {[%clk 0:00:11]} 51. Qd5 {[%clk 0:00:14]}  Rb6 {[%clk 0:00:01]} 52. Qxf5+ {[%clk 0:00:14]}  g6 {[%clk 0:00:02]} 53. Qd5 {[%clk 0:00:10]}  Qh8+ {[%clk 0:00:02]} 54. Qd4 {[%clk 0:00:10]}  Qxd4+ {[%clk 0:00:02]} 55. Rxd4 {[%clk 0:00:10]}  Re6 {[%clk 0:00:03]} 56. Rd7 {[%clk 0:00:10]}  Kg8 {[%clk 0:00:03]} 57. Rd8+ {[%clk 0:00:10]}  Kf7 {[%clk 0:00:04]} 58. e8=Q+ {[%clk 0:00:10]}  Rxe8 {[%clk 0:00:03]} 59. Rxe8 {[%clk 0:00:11]}  Kxe8 {[%clk 0:00:04]} 60. Ka2 {[%clk 0:00:12]}  Kf7 {[%clk 0:00:05]} 61. Kxa3 {[%clk 0:00:13]}  Kf6 {[%clk 0:00:06]} 62. Kb4 {[%clk 0:00:13]}  Kf5 {[%clk 0:00:07]} 63. Kc5 {[%clk 0:00:13]}  Kg4 {[%clk 0:00:07]} 64. Kd5 {[%clk 0:00:13]}  Kh3 {[%clk 0:00:08]} 65. Ke6 {[%clk 0:00:14]}  Kxh2 {[%clk 0:00:08]} 66. Kf6 {[%clk 0:00:14]}  Kxg3 {[%clk 0:00:09]} 67. Kxg6 {[%clk 0:00:14]}  Kxf4 {[%clk 0:00:09]} 68. Kxh6 {[%clk 0:00:15]} 1/2-1/2


[Site "https://www.chess.com"]

[Event "Titled Tuesday Blitz August 23 Late 2022"]
[White "Nakamura, Hikaru"]
[Black "Howell, David W L"]
[WhiteFideId "2016192"]
[BlackFideId "410608"]
[WhiteElo "2850"]
[BlackElo "2559"]
[Result "1-0"]
[Round "11"]
[TimeControl "180+1"]
[Date "2022.08.23"]
[WhiteClock "0:00:04"]
[BlackClock "0:00:01"]

1. g3 {[%clk 0:02:57]}  e5 {[%clk 0:02:49]} 2. Bg2 {[%clk 0:02:57]}  Nf6 {[%clk 0:02:49]} 3. d3 {[%clk 0:02:51]}  d5 {[%clk 0:02:44]} 4. Bg5 {[%clk 0:02:51]}  c6 {[%clk 0:02:40]} 5. Nc3 {[%clk 0:02:49]}  Nbd7 {[%clk 0:02:35]} 6. e4 {[%clk 0:02:47]}  dxe4 {[%clk 0:02:23]} 7. dxe4 {[%clk 0:02:45]}  h6 {[%clk 0:02:21]} 8. Bd2 {[%clk 0:02:36]}  Bc5 {[%clk 0:02:16]} 9. Nge2 {[%clk 0:02:31]}  O-O {[%clk 0:02:15]} 10. O-O {[%clk 0:02:31]}  a5 {[%clk 0:02:14]} 11. Nc1 {[%clk 0:02:29]}  a4 {[%clk 0:01:58]} 12. Nd3 {[%clk 0:02:27]}  Bb6 {[%clk 0:01:52]} 13. b3 {[%clk 0:02:00]}  axb3 {[%clk 0:01:43]} 14. cxb3 {[%clk 0:02:00]}  Qe7 {[%clk 0:01:33]} 15. Rc1 {[%clk 0:01:38]}  Rd8 {[%clk 0:01:29]} 16. Na4 {[%clk 0:01:37]}  Bd4 {[%clk 0:01:19]} 17. Bb4 {[%clk 0:01:37]}  Qe8 {[%clk 0:01:19]} 18. Qc2 {[%clk 0:01:31]}  Nf8 {[%clk 0:01:13]} 19. Bc5 {[%clk 0:01:12]}  Ne6 {[%clk 0:01:07]} 20. Bb6 {[%clk 0:01:12]}  Bxb6 {[%clk 0:00:52]} 21. Nxb6 {[%clk 0:01:12]}  Nd4 {[%clk 0:00:53]} 22. Qb2 {[%clk 0:01:08]}  Rb8 {[%clk 0:00:39]} 23. Nc4 {[%clk 0:00:41]}  Nd7 {[%clk 0:00:34]} 24. f4 {[%clk 0:00:39]}  f6 {[%clk 0:00:29]} 25. Bh3 {[%clk 0:00:35]}  Qe7 {[%clk 0:00:25]} 26. Bg2 {[%clk 0:00:17]}  Nc5 {[%clk 0:00:19]} 27. Nf2 {[%clk 0:00:11]}  exf4 {[%clk 0:00:15]} 28. gxf4 {[%clk 0:00:12]}  b5 {[%clk 0:00:14]} 29. Ne3 {[%clk 0:00:12]}  Nce6 {[%clk 0:00:12]} 30. Nh3 {[%clk 0:00:10]}  b4 {[%clk 0:00:08]} 31. Rfd1 {[%clk 0:00:08]}  Ba6 {[%clk 0:00:04]} 32. Rd2 {[%clk 0:00:07]}  Qa7 {[%clk 0:00:03]} 33. Kh1 {[%clk 0:00:04]}  Nb5 {[%clk 0:00:03]} 34. Nf5 {[%clk 0:00:01]}  Nc3 {[%clk 0:00:03]} 35. Bf3 {[%clk 0:00:01]}  Kh8 {[%clk 0:00:02]} 36. Rg2 {[%clk 0:00:01]}  Qf7 {[%clk 0:00:02]} 37. Qf2 {[%clk 0:00:02]}  Rd3 {[%clk 0:00:02]} 38. Rcg1 {[%clk 0:00:02]}  Rg8 {[%clk 0:00:01]} 39. Qh4 {[%clk 0:00:03]}  Rxf3 {[%clk 0:00:01]} 40. Nxh6 {[%clk 0:00:03]}  gxh6 {[%clk 0:00:01]} 41. Qxh6+ {[%clk 0:00:04]} 1-0


[Site "https://www.chess.com"]

[Event "Titled Tuesday Blitz August 23 Late 2022"]
[White "Papasimakopoulos, Alexandros"]
[Black "Uskov, Artem"]
[WhiteFideId "4244125"]
[BlackFideId "34254854"]
[WhiteElo "2357"]
[BlackElo "2335"]
[Result "0-1"]
[Round "11"]
[TimeControl "180+1"]
[Date "2022.08.23"]
[WhiteClock "0:00:05"]
[BlackClock "0:00:16"]

1. d4 {[%clk 0:02:45]}  Nf6 {[%clk 0:02:57]} 2. c4 {[%clk 0:02:41]}  g6 {[%clk 0:02:57]} 3. Nc3 {[%clk 0:02:40]}  Bg7 {[%clk 0:02:57]} 4. e4 {[%clk 0:02:40]}  d6 {[%clk 0:02:57]} 5. f3 {[%clk 0:02:40]}  O-O {[%clk 0:02:56]} 6. Nge2 {[%clk 0:02:40]}  Nbd7 {[%clk 0:02:55]} 7. Be3 {[%clk 0:02:41]}  c5 {[%clk 0:02:55]} 8. Qd2 {[%clk 0:02:41]}  a6 {[%clk 0:02:55]} 9. Nc1 {[%clk 0:02:38]}  Qa5 {[%clk 0:02:51]} 10. Be2 {[%clk 0:02:37]}  Rb8 {[%clk 0:02:51]} 11. Nb3 {[%clk 0:02:36]}  Qd8 {[%clk 0:02:49]} 12. dxc5 {[%clk 0:02:35]}  dxc5 {[%clk 0:02:46]} 13. Nxc5 {[%clk 0:02:35]}  b5 {[%clk 0:02:38]} 14. cxb5 {[%clk 0:02:31]}  axb5 {[%clk 0:02:38]} 15. Bxb5 {[%clk 0:02:28]}  Qc7 {[%clk 0:02:09]} 16. Nxd7 {[%clk 0:02:25]}  Nxd7 {[%clk 0:02:08]} 17. Nd5 {[%clk 0:02:17]}  Qd6 {[%clk 0:02:03]} 18. a4 {[%clk 0:02:14]}  Nc5 {[%clk 0:02:03]} 19. Qc2 {[%clk 0:01:56]}  Ne6 {[%clk 0:01:49]} 20. O-O-O {[%clk 0:01:50]}  Kh8 {[%clk 0:01:39]} 21. Kb1 {[%clk 0:01:47]}  Ba6 {[%clk 0:01:31]} 22. Nc3 {[%clk 0:01:30]}  Qb4 {[%clk 0:01:31]} 23. Nd5 {[%clk 0:01:26]}  Qd6 {[%clk 0:01:23]} 24. Nc3 {[%clk 0:01:23]}  Qb4 {[%clk 0:01:23]} 25. Na2 {[%clk 0:01:24]}  Qa5 {[%clk 0:01:16]} 26. Bd2 {[%clk 0:01:24]}  Qb6 {[%clk 0:01:13]} 27. Bc3 {[%clk 0:01:19]}  Bxb5 {[%clk 0:01:12]} 28. Bxg7+ {[%clk 0:01:19]}  Kxg7 {[%clk 0:01:11]} 29. axb5 {[%clk 0:01:19]}  Qxb5 {[%clk 0:01:12]} 30. Rd5 {[%clk 0:01:18]}  Qa6 {[%clk 0:01:11]} 31. Qd3 {[%clk 0:01:15]}  Qa7 {[%clk 0:01:08]} 32. Rd7 {[%clk 0:01:08]}  Qb6 {[%clk 0:01:08]} 33. Qc3+ {[%clk 0:01:02]}  Kg8 {[%clk 0:01:08]} 34. Rhd1 {[%clk 0:00:48]}  Ra8 {[%clk 0:01:02]} 35. Qb4 {[%clk 0:00:39]}  Qa6 {[%clk 0:01:00]} 36. Qa3 {[%clk 0:00:32]}  Qxa3 {[%clk 0:00:42]} 37. bxa3 {[%clk 0:00:33]}  Rxa3 {[%clk 0:00:43]} 38. Rb7 {[%clk 0:00:21]}  Rfa8 {[%clk 0:00:41]} 39. Rd2 {[%clk 0:00:21]}  Nc5 {[%clk 0:00:40]} 40. Rb4 {[%clk 0:00:18]}  Kg7 {[%clk 0:00:23]} 41. Rc2 {[%clk 0:00:16]}  Ne6 {[%clk 0:00:23]} 42. Rcb2 {[%clk 0:00:15]}  Nf4 {[%clk 0:00:23]} 43. R4b3 {[%clk 0:00:14]}  R3a7 {[%clk 0:00:21]} 44. g3 {[%clk 0:00:14]}  Ne6 {[%clk 0:00:22]} 45. Nc3 {[%clk 0:00:13]}  Ra1+ {[%clk 0:00:21]} 46. Kc2 {[%clk 0:00:14]}  Nd4+ {[%clk 0:00:21]} 47. Kd3 {[%clk 0:00:14]}  Nxb3 {[%clk 0:00:22]} 48. Rxb3 {[%clk 0:00:15]}  R1a3 {[%clk 0:00:22]} 49. Rxa3 {[%clk 0:00:15]}  Rxa3 {[%clk 0:00:23]} 50. f4 {[%clk 0:00:15]}  e6 {[%clk 0:00:23]} 51. Kd4 {[%clk 0:00:15]}  Ra1 {[%clk 0:00:23]} 52. Ne2 {[%clk 0:00:15]}  Rh1 {[%clk 0:00:23]} 53. h4 {[%clk 0:00:13]}  Ra1 {[%clk 0:00:22]} 54. e5 {[%clk 0:00:13]}  Ra3 {[%clk 0:00:21]} 55. Nc3 {[%clk 0:00:12]}  h6 {[%clk 0:00:20]} 56. Ne4 {[%clk 0:00:12]}  Rf3 {[%clk 0:00:19]} 57. Kc5 {[%clk 0:00:12]}  Re3 {[%clk 0:00:16]} 58. Kd4 {[%clk 0:00:12]}  Rf3 {[%clk 0:00:17]} 59. Kc5 {[%clk 0:00:12]}  g5 {[%clk 0:00:17]} 60. hxg5 {[%clk 0:00:12]}  hxg5 {[%clk 0:00:17]} 61. Nxg5 {[%clk 0:00:12]}  Rxg3 {[%clk 0:00:18]} 62. Ne4 {[%clk 0:00:05]}  Rf3 {[%clk 0:00:16]} 63. Nf6 {[%clk 0:00:05]}  Kg6 {[%clk 0:00:16]} 0-1


[Site "https://www.chess.com"]

[Event "Titled Tuesday Blitz August 23 Late 2022"]
[White "Seo, Jung Min"]
[Black "Hardaway, Brewington"]
[WhiteFideId "1734687"]
[BlackFideId "30941849"]
[WhiteElo "2414"]
[BlackElo "1813"]
[Result "1-0"]
[Round "11"]
[TimeControl "180+1"]
[Date "2022.08.23"]
[WhiteClock "0:02:10"]
[BlackClock "0:02:03"]

1. d4 {[%clk 0:03:00]}  Nf6 {[%clk 0:02:57]} 2. c4 {[%clk 0:03:00]}  e6 {[%clk 0:02:57]} 3. Nc3 {[%clk 0:03:00]}  d5 {[%clk 0:02:57]} 4. cxd5 {[%clk 0:02:59]}  exd5 {[%clk 0:02:57]} 5. Bg5 {[%clk 0:02:56]}  c6 {[%clk 0:02:57]} 6. Qc2 {[%clk 0:02:55]}  Be7 {[%clk 0:02:54]} 7. e3 {[%clk 0:02:55]}  h6 {[%clk 0:02:54]} 8. Bh4 {[%clk 0:02:55]}  Nbd7 {[%clk 0:02:55]} 9. Bd3 {[%clk 0:02:53]}  O-O {[%clk 0:02:55]} 10. Nge2 {[%clk 0:02:49]}  Re8 {[%clk 0:02:55]} 11. O-O {[%clk 0:02:49]}  Ne4 {[%clk 0:02:53]} 12. Bxe7 {[%clk 0:02:44]}  Qxe7 {[%clk 0:02:54]} 13. Rae1 {[%clk 0:02:43]}  Ndf6 {[%clk 0:02:43]} 14. f3 {[%clk 0:02:40]}  Nxc3 {[%clk 0:02:39]} 15. Nxc3 {[%clk 0:02:40]}  c5 {[%clk 0:02:34]} 16. dxc5 {[%clk 0:02:36]}  Qxc5 {[%clk 0:02:32]} 17. Nb5 {[%clk 0:02:35]}  Qxc2 {[%clk 0:02:32]} 18. Bxc2 {[%clk 0:02:35]}  Re7 {[%clk 0:02:33]} 19. Bd3 {[%clk 0:02:33]}  Be6 {[%clk 0:02:32]} 20. Nd4 {[%clk 0:02:32]}  Rc8 {[%clk 0:02:31]} 21. Rc1 {[%clk 0:02:31]}  Rec7 {[%clk 0:02:31]} 22. Rxc7 {[%clk 0:02:29]}  Rxc7 {[%clk 0:02:32]} 23. Kf2 {[%clk 0:02:29]}  Bd7 {[%clk 0:02:29]} 24. g4 {[%clk 0:02:28]}  Kf8 {[%clk 0:02:29]} 25. h4 {[%clk 0:02:27]}  Ke7 {[%clk 0:02:28]} 26. g5 {[%clk 0:02:26]}  Ng8 {[%clk 0:02:22]} 27. Kg3 {[%clk 0:02:25]}  Kd6 {[%clk 0:02:16]} 28. Kf4 {[%clk 0:02:23]}  f6 {[%clk 0:02:11]} 29. Rg1 {[%clk 0:02:14]}  Bc8 {[%clk 0:02:03]} 30. Nb5+ {[%clk 0:02:10]} 1-0


[Site "https://www.chess.com"]

[Event "Titled Tuesday Blitz August 23 Late 2022"]
[White "Tanenbaum, Zachary"]
[Black "Kowalski, Igor"]
[WhiteFideId "2060850"]
[BlackFideId "1172468"]
[WhiteElo "2175"]
[BlackElo "2376"]
[Result "0-1"]
[Round "11"]
[TimeControl "180+1"]
[Date "2022.08.23"]
[WhiteClock "0:00:15"]
[BlackClock "0:01:28"]

1. e4 {[%clk 0:03:00]}  g6 {[%clk 0:02:54]} 2. d4 {[%clk 0:03:00]}  Bg7 {[%clk 0:02:54]} 3. Nc3 {[%clk 0:03:01]}  d6 {[%clk 0:02:53]} 4. Bg5 {[%clk 0:03:00]}  a6 {[%clk 0:02:52]} 5. Qd2 {[%clk 0:03:00]}  b5 {[%clk 0:02:52]} 6. O-O-O {[%clk 0:02:59]}  Bb7 {[%clk 0:02:52]} 7. Nf3 {[%clk 0:02:58]}  Nd7 {[%clk 0:02:51]} 8. Bd3 {[%clk 0:02:56]}  Nb6 {[%clk 0:02:50]} 9. Rhe1 {[%clk 0:02:51]}  b4 {[%clk 0:02:47]} 10. Ne2 {[%clk 0:02:35]}  a5 {[%clk 0:02:47]} 11. Qe3 {[%clk 0:02:19]}  h6 {[%clk 0:02:44]} 12. Bh4 {[%clk 0:02:18]}  Qd7 {[%clk 0:02:42]} 13. e5 {[%clk 0:02:08]}  Bd5 {[%clk 0:02:36]} 14. Nf4 {[%clk 0:01:38]}  g5 {[%clk 0:02:26]} 15. Nxd5 {[%clk 0:01:35]}  Nxd5 {[%clk 0:02:25]} 16. Qe4 {[%clk 0:01:35]}  e6 {[%clk 0:02:25]} 17. Bg3 {[%clk 0:01:33]}  Nge7 {[%clk 0:02:23]} 18. h4 {[%clk 0:01:27]}  a4 {[%clk 0:02:18]} 19. hxg5 {[%clk 0:01:17]}  a3 {[%clk 0:01:39]} 20. Bc4 {[%clk 0:01:16]}  axb2+ {[%clk 0:01:38]} 21. Kxb2 {[%clk 0:01:16]}  Qa4 {[%clk 0:01:34]} 22. Kc1 {[%clk 0:00:18]}  Qa3+ {[%clk 0:01:28]} 23. Kd2 {[%clk 0:00:18]}  Qc3+ {[%clk 0:01:28]} 24. Ke2 {[%clk 0:00:16]}  Qxc4+ {[%clk 0:01:29]} 25. Rd3 {[%clk 0:00:15]}  Nc3+ {[%clk 0:01:28]} 0-1


[Site "https://www.chess.com"]